bitfinex-derivatives/quotes_BTCF0:USTF0_20250722
["timestamp","ask_amount","ask_price","bid_price","bid_amount"]
[1753215804148,2.93267507,119800.0,119790.0,0.2824385]
[1753215804560,2.5808557,119800.0,119790.0,0.2339285]
[1753215804853,2.93267507,119800.0,119790.0,0.2824385]
[1753215805953,2.93247507,119800.0,119790.0,0.3060385]
[1753215806354,2.93247507,119800.0,119790.0,0.4255885]
[1753215806555,2.93247507,119800.0,119790.0,0.42558844]
[1753215808562,2.93235507,119800.0,119790.0,0.42558844]
[1753215809466,2.93235507,119800.0,119790.0,0.41254486]
[1753215809667,2.93235507,119800.0,119790.0,0.42558832]
[1753215810067,1.9851357,119800.0,119790.0,0.77740769]
[1753215810263,0.4620657,119800.0,119790.0,0.77740769]
[1753215810463,0.8912657,119800.0,119790.0,0.77740769]
[1753215810664,0.7701157,119800.0,119790.0,0.83695788]
[1753215811169,0.1748757,119800.0,119790.0,0.77740769]
[1753215812369,0.1748757,119800.0,119790.0,0.75458161]
[1753215812566,0.1748757,119800.0,119790.0,0.77740598]
[1753215813973,0.1748757,119800.0,119790.0,0.83695617]
[1753215815660,0.1748757,119800.0,119790.0,0.82717412]
[1753215815866,0.1748757,119800.0,119790.0,0.76762393]
[1753215816067,0.1748757,119800.0,119790.0,0.84233155]
[1753215816571,0.1748757,119800.0,119790.0,0.85211288]
[1753215817268,0.1748757,119800.0,119790.0,0.84233155]
[1753215817472,0.1748757,119800.0,119790.0,0.85211281]
[1753215818074,0.1748757,119800.0,119790.0,0.84233155]
[1753215818775,0.1748757,119800.0,119790.0,1.00922115]
[1753215820167,0.1748757,119800.0,119790.0,0.99617883]
[1753215820374,0.1748757,119800.0,119790.0,1.00922051]
[1753215821566,0.1738757,119800.0,119790.0,1.00922051]
[1753215821770,0.1728757,119800.0,119790.0,1.00922051]
[1753215821968,0.006,119800.0,119790.0,1.01900177]
[1753215822174,0.1728756,119800.0,119790.0,0.94429415]
[1753215823069,0.006,119800.0,119790.0,0.94429415]
[1753215825271,0.1728757,119800.0,119790.0,1.00389527]
[1753215825474,0.006,119800.0,119790.0,1.00389527]
[1753215825670,0.006,119800.0,119790.0,0.94429415]
[1753215826975,0.0002,119810.0,119800.0,0.4775257]
[1753215827168,0.2504739,119820.0,119810.0,0.2905517]
[1753215827364,0.2502739,119820.0,119810.0,1.42357107]
[1753215828374,0.2811839,119820.0,119810.0,1.42357107]
[1753215828576,0.2841839,119820.0,119810.0,1.42357107]
[1753215828978,0.3649039,119820.0,119810.0,1.25670937]
[1753215829177,0.3769439,119820.0,119810.0,0.66246937]
[1753215829483,0.3789439,119820.0,119810.0,1.25666937]
[1753215829977,0.3789439,119820.0,119810.0,1.42353137]
[1753215831475,0.3789439,119820.0,119810.0,1.071712]
[1753215831674,0.5462539,119820.0,119810.0,1.25646937]
[1753215831875,0.5462539,119820.0,119810.0,0.35532949]
[1753215832275,0.5695339,119820.0,119810.0,0.35532949]
[1753215832977,0.5665339,119820.0,119810.0,0.31065]
[1753215834071,0.5665339,119820.0,119810.0,0.477512]
[1753215834475,0.5665339,119820.0,119810.0,0.82933137]
[1753215835078,0.5432539,119820.0,119810.0,0.82933137]
[1753215835378,0.3759439,119820.0,119810.0,0.66246937]
[1753215836071,0.4245939,119820.0,119810.0,0.66246937]
[1753215836680,0.4245939,119820.0,119810.0,0.31065]
[1753215836881,0.4245939,119820.0,119810.0,0.66246937]
[1753215837977,0.4245939,119820.0,119810.0,0.82933147]
[1753215838581,0.3759439,119820.0,119810.0,0.82933147]
[1753215840593,0.2117988,119820.0,119810.0,0.85213496]
[1753215840789,0.1688488,119820.0,119810.0,0.90193532]
[1753215841089,0.002,119820.0,119810.0,0.91171446]
[1753215843192,0.002,119820.0,119810.0,0.85213248]
[1753215843587,0.1670458,119830.0,119820.0,0.4774984]
[1753215843789,0.1253204,119840.0,119820.0,1.34995213]
[1753215844090,0.1253204,119840.0,119830.0,0.30103244]
[1753215844091,0.3228611,119840.0,119830.0,0.30103244]
[1753215844298,0.3740906,119850.0,119840.0,0.31065]
[1753215844499,0.3740906,119850.0,119840.0,0.35531106]
[1753215844500,0.4225406,119850.0,119840.0,0.35531106]
[1753215844690,0.3738906,119850.0,119840.0,0.35531106]
[1753215845195,0.3738906,119850.0,119840.0,0.70713043]
[1753215845492,0.4225406,119850.0,119840.0,1.30033043]
[1753215845690,0.4235406,119850.0,119840.0,1.30033043]
[1753215847496,0.5422006,119850.0,119840.0,1.30033043]
[1753215847996,0.89401997,119850.0,119840.0,0.35531106]
[1753215848196,0.91729997,119850.0,119840.0,0.35531106]
[1753215849496,0.95899697,119850.0,119840.0,0.02975118]
[1753215849696,1.00070157,119850.0,119840.0,0.02975118]
[1753215850094,0.81011157,119850.0,119840.0,0.04466106]
[1753215850294,0.83290157,119850.0,119840.0,0.04466106]
[1753215850496,0.83490157,119850.0,119840.0,0.04466106]
[1753215850692,0.88021157,119850.0,119840.0,0.04466106]
[1753215850895,0.99774157,119850.0,119840.0,0.04466106]
[1753215851194,0.99674157,119850.0,119840.0,0.04466106]
[1753215852000,0.99674157,119850.0,119840.0,0.16610106]
[1753215852299,0.99674157,119850.0,119840.0,0.21548106]
[1753215854492,0.99674157,119850.0,119840.0,0.36043106]
[1753215854913,1.2374822,119850.0,119840.0,0.71225043]
[1753215855199,1.2374822,119850.0,119840.0,0.52725126]
[1753215855390,0.4175876,119850.0,119840.0,0.52725126]
[1753215855790,1.0101076,119850.0,119840.0,0.36043106]
[1753215856197,1.1729476,119850.0,119840.0,0.36043106]
[1753215856497,1.1957376,119850.0,119840.0,0.36043106]
[1753215857800,1.54755697,119850.0,119840.0,0.36043106]
[1753215857997,1.1957376,119850.0,119840.0,0.36043106]
[1753215859201,1.1957376,119850.0,119840.0,0.36036967]
[1753215859401,0.6032176,119850.0,119840.0,0.36036967]
[1753215859600,1.1955376,119850.0,119840.0,0.36036967]
[1753215860201,1.1955376,119850.0,119840.0,0.31577]
[1753215860404,1.1727476,119850.0,119840.0,0.66758937]
[1753215860897,0.9171476,119850.0,119840.0,0.66758937]
[1753215861099,0.3248276,119850.0,119840.0,0.66758937]
[1753215861500,0.3248276,119850.0,119840.0,0.68062615]
[1753215861803,0.3248276,119850.0,119840.0,0.66758937]
[1753215862103,0.3248276,119850.0,119840.0,0.68062615]
[1753215862304,0.3238276,119850.0,119840.0,0.68062615]
[1753215862498,0.3248276,119850.0,119840.0,0.68062615]
[1753215862905,0.4056476,119850.0,119840.0,0.7252197]
[1753215863201,0.4171876,119850.0,119840.0,0.7252197]
[1753215864302,0.4171876,119850.0,119840.0,0.36036355]
[1753215864504,0.4171876,119850.0,119840.0,0.71218292]
[1753215864698,0.4161876,119850.0,119840.0,0.71318292]
[1753215866108,0.4161876,119850.0,119840.0,0.66858937]
[1753215866302,0.4161876,119850.0,119840.0,0.68162651]
[1753215866810,0.4161876,119850.0,119840.0,0.84844681]
[1753215868805,0.001,119850.0,119840.0,0.84844681]
[1753215869302,0.001,119850.0,119840.0,0.92315443]
[1753215870310,0.001,119850.0,119840.0,0.85822395]
[1753215872210,0.001,119850.0,119840.0,0.85822347]
[1753215872908,0.001,119850.0,119840.0,0.93293109]
[1753215873412,0.33943684,119880.0,119870.0,0.31577]
[1753215873620,0.21652684,119880.0,119870.0,0.87899497]
[1753215874312,0.21652684,119880.0,119870.0,0.83436797]
[1753215874707,0.21652684,119880.0,119870.0,0.68062368]
[1753215874913,0.32789684,119880.0,119870.0,0.68062368]
[1753215875219,0.32789684,119880.0,119870.0,0.39675212]
[1753215875220,0.34043684,119880.0,119870.0,0.39675212]
[1753215875410,0.50327684,119880.0,119870.0,0.39675212]
[1753215875607,0.87788621,119880.0,119870.0,0.4413343]
[1753215875813,0.87788621,119880.0,119870.0,0.41827987]
[1753215876117,0.87788621,119880.0,119870.0,0.41827983]
[1753215876309,0.87788621,119880.0,119870.0,0.4628526]
[1753215877210,0.52606684,119880.0,119870.0,0.4628526]
[1753215877417,0.87788621,119880.0,119870.0,0.4628526]
[1753215878919,0.87788621,119880.0,119870.0,0.44981853]
[1753215879325,0.52606684,119880.0,119870.0,0.44981853]
[1753215879618,0.87788621,119880.0,119870.0,0.44981853]
[1753215881213,0.87688621,119880.0,119870.0,0.44981853]
[1753215881921,0.87688621,119880.0,119870.0,0.61659713]
[1753215881922,1.09339684,119880.0,119870.0,0.61659713]
[1753215882112,1.09339684,119880.0,119870.0,0.9684165]
[1753215883214,0.93055684,119880.0,119870.0,0.9684165]
[1753215883425,0.33943684,119880.0,119870.0,0.9684165]
[1753215883920,0.33943684,119880.0,119870.0,0.8016379]
[1753215884123,0.38891684,119880.0,119870.0,0.8016379]
[1753215884423,0.53069684,119880.0,119870.0,0.44981853]
[1753215885324,0.53069684,119880.0,119870.0,0.45081853]
[1753215891722,0.88251621,119880.0,119870.0,0.45081853]
[1753215892824,0.88251621,119880.0,119870.0,0.40624576]
[1753215893226,0.53069684,119880.0,119870.0,0.40624576]
[1753215893423,0.88251621,119880.0,119870.0,0.40624576]
[1753215894923,0.21652684,119880.0,119870.0,0.75806513]
[1753215895127,0.33695684,119880.0,119870.0,0.77109928]
[1753215895424,0.88003621,119880.0,119870.0,0.41927991]
[1753215895929,0.52821684,119880.0,119870.0,0.41927991]
[1753215896129,0.88003621,119880.0,119870.0,0.41927991]
[1753215896733,1.47043621,119880.0,119870.0,0.41927991]
[1753215898026,1.11861684,119880.0,119870.0,0.41927991]
[1753215898232,1.11861684,119880.0,119870.0,0.47878257]
[1753215899125,1.47043621,119880.0,119870.0,0.47878257]
[1753215900828,1.47043621,119880.0,119870.0,0.16301257]
[1753215901429,1.47043621,119880.0,119870.0,0.16301317]
[1753215902236,1.47043621,119880.0,119870.0,0.28721317]
[1753215902742,1.47043621,119880.0,119870.0,0.22771051]
[1753215903638,1.47043621,119880.0,119870.0,0.10351051]
[1753215904042,1.47043621,119880.0,119870.0,0.10251051]
[1753215904341,1.47043621,119880.0,119870.0,0.10251058]
[1753215905045,1.82225558,119880.0,119870.0,0.10251058]
[1753215905437,1.47043621,119880.0,119870.0,0.10251058]
[1753215907647,1.47043621,119880.0,119870.0,0.14897842]
[1753215908249,1.47043621,119880.0,119870.0,0.08947576]
[1753215908435,0.2605986,119870.0,119860.0,0.28520266]
[1753215908642,0.83315797,119870.0,119860.0,0.24252813]
[1753215908842,0.83315797,119870.0,119860.0,0.07253813]
[1753215909144,0.83315797,119870.0,119860.0,0.13770926]
[1753215909545,0.83315797,119870.0,119860.0,0.25508926]
[1753215909750,0.83315797,119870.0,119860.0,0.30453926]
[1753215909946,0.83315797,119870.0,119860.0,0.32750926]
[1753215910349,0.83315797,119870.0,119860.0,0.32750935]
[1753215911052,0.83315797,119870.0,119860.0,0.32650935]
[1753215911844,0.4813386,119870.0,119860.0,0.30353935]
[1753215912050,0.83315797,119870.0,119860.0,0.30353935]
[1753215912353,0.83315797,119870.0,119860.0,0.32650935]
[1753215912747,0.83315797,119870.0,119860.0,0.26700669]
[1753215913046,0.83315797,119870.0,119860.0,0.28896562]
[1753215914156,0.4577825,119860.0,119850.0,0.05950266]
[1753215914354,1.42281187,119860.0,119850.0,0.07253906]
[1753215914849,1.42281187,119860.0,119850.0,0.23836906]
[1753215915155,1.42281187,119860.0,119850.0,0.20081212]
[1753215915357,1.42281187,119860.0,119850.0,0.03498212]
[1753215915748,1.42281187,119860.0,119850.0,0.03598212]
[1753215916352,1.42281187,119860.0,119850.0,0.001]
[1753215916552,1.42281187,119860.0,119830.0,0.37057266]
[1753215916553,0.2907504,119840.0,119830.0,0.37057266]
[1753215916853,1.42275977,119840.0,119830.0,0.38035044]
[1753215917350,1.42275977,119840.0,119830.0,0.40228296]
[1753215918650,1.42275977,119840.0,119830.0,0.0327103]
[1753215919148,1.42275977,119840.0,119830.0,0.14031252]
[1753215919352,1.42275977,119840.0,119830.0,0.24826518]
[1753215919553,0.83319977,119840.0,119830.0,0.18876252]
[1753215919754,1.42263977,119840.0,119830.0,0.18876252]
[1753215919953,1.42263977,119840.0,119830.0,0.02293252]
[1753215920548,1.42263977,119840.0,119830.0,0.18876252]
[1753215920953,1.42263977,119840.0,119830.0,0.25406147]
[1753215921654,1.0708204,119840.0,119830.0,0.25406147]
[1753215921948,1.42263977,119840.0,119830.0,0.08823147]
[1753215922655,1.42263977,119840.0,119830.0,0.20561147]
[1753215922858,1.42263977,119840.0,119830.0,0.25406147]
[1753215923259,1.42263977,119840.0,119830.0,0.20561147]
[1753215923954,1.42263977,119840.0,119830.0,0.08823147]
[1753215924461,1.0707404,119840.0,119830.0,0.38788147]
[1753215924761,1.0707404,119840.0,119830.0,0.27703147]
[1753215924956,0.4813804,119840.0,119830.0,0.27703147]
[1753215925162,1.0706604,119840.0,119830.0,0.30797147]
[1753215925455,1.0706604,119840.0,119830.0,0.38788147]
[1753215926061,1.42247977,119840.0,119830.0,0.38788147]
[1753215927558,1.0706604,119840.0,119830.0,0.38788147]
[1753215927770,1.42247977,119840.0,119830.0,0.38788147]
[1753215929465,1.42247977,119840.0,119830.0,0.08823147]
[1753215929651,0.4519842,119830.0,119820.0,0.05950266]
[1753215929854,0.4519842,119830.0,119820.0,0.1652406]
[1753215929855,0.80380357,119830.0,119820.0,0.1652406]
[1753215930055,0.80380357,119830.0,119820.0,0.05950266]
[1753215930761,0.80380357,119830.0,119820.0,0.06750266]
[1753215930964,0.80380357,119830.0,119820.0,0.008]
[1753215931162,0.80380357,119830.0,119820.0,0.07753791]
[1753215931364,0.4519842,119830.0,119820.0,0.04870387]
[1753215931557,1.39288357,119830.0,119820.0,0.07167387]
[1753215932862,1.39288357,119830.0,119820.0,0.04870387]
[1753215933065,1.39288357,119830.0,119820.0,0.08883604]
[1753215933264,1.39288357,119830.0,119820.0,0.15409207]
[1753215933465,1.39288357,119830.0,119820.0,0.04870387]
[1753215934661,0.422158,119820.0,119810.0,0.04454929]
[1753215934859,0.77397737,119820.0,119810.0,0.01803269]
[1753215935262,0.4221721,119810.0,119800.0,0.04029464]
[1753215935457,0.372236,119800.0,119790.0,0.19985266]
[1753215935761,0.77400537,119800.0,119790.0,0.26134465]
[1753215935967,0.77400537,119800.0,119790.0,0.30171457]
[1753215936164,0.77400537,119800.0,119790.0,0.24221191]
[1753215936565,0.77400537,119800.0,119790.0,0.12016347]
[1753215936761,0.77400537,119800.0,119790.0,0.06675156]
[1753215936963,0.77400537,119800.0,119780.0,0.18887755]
[1753215936964,0.27856,119790.0,119780.0,0.14042755]
[1753215937168,1.36297937,119790.0,119780.0,0.19866005]
[1753215937863,1.36297937,119790.0,119780.0,0.20029755]
[1753215938470,1.36297937,119790.0,119780.0,0.24031445]
[1753215938670,1.36497937,119790.0,119780.0,0.26831445]
[1753215940766,1.36497937,119790.0,119780.0,0.20844445]
[1753215940972,1.36497937,119790.0,119780.0,0.27405339]
[1753215941273,1.38489937,119790.0,119780.0,0.25100584]
[1753215942069,1.38498712,119790.0,119780.0,0.25100584]
[1753215943575,1.38398712,119790.0,119780.0,0.23700584]
[1753215943873,1.38598712,119790.0,119780.0,0.23700584]
[1753215944077,1.38798712,119790.0,119780.0,0.22300584]
[1753215945276,1.38798712,119790.0,119780.0,0.29755584]
[1753215946674,1.38798712,119790.0,119780.0,0.22300584]
[1753215946974,1.38798712,119790.0,119780.0,0.27296584]
[1753215947275,1.38798712,119790.0,119780.0,0.29755584]
[1753215949769,0.81112712,119790.0,119780.0,0.41835584]
[1753215949968,1.39984712,119790.0,119780.0,0.41835584]
[1753215950668,0.43938775,119790.0,119780.0,0.78322]
[1753215950973,0.76061775,119790.0,119780.0,0.9599065]
[1753215951265,0.17197775,119790.0,119780.0,1.3670919]
[1753215951470,0.17197775,119790.0,119780.0,1.37687339]
[1753215952171,0.17197775,119790.0,119780.0,1.01947215]
[1753215952561,0.17197775,119790.0,119780.0,0.79300149]
[1753215954573,0.16997775,119790.0,119780.0,0.79300149]
[1753215954772,0.16997775,119790.0,119780.0,0.79900149]
[1753215955072,0.16997775,119790.0,119780.0,0.85850415]
[1753215955469,0.17097775,119790.0,119780.0,0.86650415]
[1753215955674,0.16797775,119790.0,119780.0,0.87350167]
[1753215956174,0.16797775,119790.0,119780.0,0.87350103]
[1753215956371,0.16897775,119790.0,119780.0,0.88450103]
[1753215956669,0.16897775,119790.0,119780.0,1.05140493]
[1753215958575,0.16897775,119790.0,119780.0,1.05138954]
[1753215961669,0.20012775,119790.0,119780.0,1.05138954]
[1753215962675,0.16897775,119790.0,119780.0,1.05138954]
[1753215963175,0.16897775,119790.0,119780.0,0.99188688]
[1753215963674,0.16897775,119790.0,119780.0,0.99190272]
[1753215964174,0.16897775,119790.0,119780.0,0.98212107]
[1753215964377,0.16897775,119790.0,119780.0,0.99190296]
[1753215965173,0.16897775,119790.0,119780.0,1.58002296]
[1753215965772,0.16897775,119790.0,119780.0,0.99190296]
[1753215965977,0.16897775,119790.0,119780.0,1.57998296]
[1753215968878,0.16897775,119790.0,119780.0,1.57994296]
[1753215970186,0.00208775,119790.0,119780.0,1.57994296]
[1753215970579,0.2503094,119810.0,119790.0,0.28917]
[1753215970777,0.1668641,119810.0,119800.0,0.87603979]
[1753215971082,0.1668641,119810.0,119800.0,0.85169922]
[1753215971477,0.1668641,119810.0,119800.0,1.49905244]
[1753215972081,0.2000041,119810.0,119800.0,1.49905244]
[1753215972582,0.2000041,119810.0,119800.0,1.4990495]
[1753215972973,0.2000041,119810.0,119800.0,1.3321735]
[1753215973180,0.2000041,119810.0,119800.0,1.33217368]
[1753215973375,0.2923341,119810.0,119800.0,1.49904968]
[1753215973684,0.3412441,119810.0,119800.0,1.43957646]
[1753215974083,0.2923341,119810.0,119800.0,1.43957646]
[1753215975180,0.2923341,119810.0,119800.0,1.08775709]
[1753215975484,0.2923341,119810.0,119800.0,1.43957646]
[1753215975785,0.2953341,119810.0,119800.0,1.43957646]
[1753215978687,0.2953341,119810.0,119800.0,1.43957639]
[1753215979381,0.2953341,119810.0,119800.0,1.51428401]
[1753215980186,0.2953341,119810.0,119800.0,1.34740801]
[1753215980583,0.2953341,119810.0,119800.0,1.50124338]
[1753215980782,0.2953341,119810.0,119800.0,1.51428405]
[1753215981988,0.2953341,119810.0,119800.0,1.51428415]
[1753215982885,0.2953341,119810.0,119800.0,1.43957653]
[1753215984683,0.3442441,119810.0,119800.0,0.33300116]
[1753215984890,0.80967347,119810.0,119800.0,0.39252696]
[1753215985784,0.80967347,119810.0,119800.0,0.33300116]
[1753215985985,0.4578541,119810.0,119800.0,0.33300116]
[1753215986584,0.3442441,119810.0,119800.0,0.33300116]
[1753215987285,0.3442441,119810.0,119800.0,0.49987716]
[1753215987481,0.3442441,119810.0,119800.0,0.33300116]
[1753215990192,0.3442441,119810.0,119800.0,0.33300142]
[1753215990690,0.3442441,119810.0,119800.0,0.31996076]
[1753215990892,0.3442441,119810.0,119800.0,0.33300178]
[1753215991494,0.3442441,119810.0,119800.0,0.31018]
[1753215991794,0.3442441,119810.0,119800.0,0.33300178]
[1753215993096,0.4379341,119810.0,119800.0,0.39252959]
[1753215993291,0.4578541,119810.0,119800.0,0.39252959]
[1753215993791,0.80967347,119810.0,119800.0,0.39252959]
[1753215994094,1.39663347,119810.0,119800.0,0.39252973]
[1753215997896,0.80967347,119810.0,119800.0,0.39252973]
[1753215998197,1.39655347,119810.0,119800.0,0.39252973]
[1753215999997,1.39655347,119810.0,119800.0,0.39253113]
[1753216000201,0.80967347,119810.0,119800.0,0.38274971]
[1753216000497,1.39643347,119810.0,119800.0,0.38274971]
[1753216007701,0.1668761,119800.0,119790.0,0.07470762]
[1753216007901,1.18946484,119800.0,119790.0,0.01304186]
[1753216008302,0.83764547,119800.0,119790.0,0.01304186]
[1753216009000,0.83764547,119800.0,119790.0,0.007]
[1753216009202,0.83764547,119800.0,119790.0,0.05977]
[1753216010503,1.42408547,119800.0,119790.0,0.32938]
[1753216012502,0.4858261,119800.0,119790.0,0.32938]
[1753216012703,1.0722661,119800.0,119790.0,0.32938]
[1753216013700,1.42408547,119800.0,119790.0,0.05977]
[1753216013908,1.42408547,119800.0,119790.0,0.013]
[1753216014207,1.42408547,119800.0,119790.0,0.05977]
[1753216014607,1.42408547,119800.0,119790.0,0.17982]
[1753216015105,1.0722661,119800.0,119780.0,0.29672584]
[1753216015309,0.83765937,119790.0,119780.0,0.10562584]
[1753216015504,0.2917039,119780.0,119770.0,0.39108762]
[1753216015814,1.0740139,119780.0,119770.0,0.31638]
[1753216016306,1.0740139,119780.0,119770.0,0.35885164]
[1753216016908,1.0750139,119780.0,119770.0,0.37585164]
[1753216017710,1.0750139,119780.0,119770.0,0.78717052]
[1753216019609,1.0760139,119780.0,119770.0,0.86593318]
[1753216020706,1.0760139,119780.0,119770.0,0.51411381]
[1753216020904,1.0760139,119780.0,119770.0,0.86593318]
[1753216022106,0.002,119780.0,119770.0,0.98639621]
[1753216022314,0.7542111,119790.0,119770.0,0.83702368]
[1753216022506,0.67024,119790.0,119780.0,0.89456942]
[1753216022706,0.24726,119800.0,119790.0,0.4832699]
[1753216022912,0.5874,119800.0,119790.0,0.92140344]
[1753216023213,0.4029353,119810.0,119790.0,0.70345542]
[1753216023508,0.4029353,119810.0,119800.0,0.74251808]
[1753216023509,1.0318542,119810.0,119800.0,0.74251808]
[1753216023714,0.31895,119810.0,119800.0,0.90939398]
[1753216024012,0.4377509,119820.0,119810.0,0.31638]
[1753216024213,1.0248309,119820.0,119810.0,0.69792693]
[1753216024614,1.0248309,119820.0,119810.0,0.71096751]
[1753216024917,1.0730909,119820.0,119810.0,0.71096751]
[1753216025817,1.0770909,119820.0,119810.0,0.71096751]
[1753216026223,1.0770909,119820.0,119810.0,0.69792693]
[1753216026515,1.0840909,119820.0,119810.0,0.71096703]
[1753216027618,1.0840909,119820.0,119810.0,0.68123947]
[1753216029524,1.0840909,119820.0,119810.0,0.72583059]
[1753216030226,1.0840909,119820.0,119810.0,0.68123947]
[1753216030726,0.91639,119820.0,119810.0,0.72583003]
[1753216030928,0.86813,119820.0,119810.0,0.68123947]
[1753216031226,0.86813,119820.0,119810.0,0.72582994]
[1753216031820,0.28169,119820.0,119810.0,0.84810157]
[1753216032027,0.84446,119820.0,119810.0,0.84810157]
[1753216032324,0.5866,119830.0,119820.0,0.31794]
[1753216032519,0.31569,119840.0,119830.0,0.4847743]
[1753216032727,0.90189,119840.0,119830.0,0.71432415]
[1753216032925,1.0687103,119840.0,119830.0,0.71432415]
[1753216033226,1.42052967,119840.0,119830.0,0.04456478]
[1753216034227,1.43052967,119840.0,119830.0,0.04556478]
[1753216034823,1.43552967,119840.0,119830.0,0.04556478]
[1753216035230,1.43552967,119840.0,119830.0,0.08679368]
[1753216035427,1.43552967,119840.0,119830.0,0.153521]
[1753216035729,1.43552967,119840.0,119830.0,0.04556478]
[1753216036232,1.43552967,119840.0,119830.0,0.001]
[1753216037028,1.43552967,119840.0,119830.0,0.04230015]
[1753216039827,1.43552967,119840.0,119830.0,0.1091081]
[1753216040630,0.1668343,119830.0,119820.0,0.04456478]
[1753216040836,0.2760382,119820.0,119810.0,0.11646478]
[1753216041129,1.39080757,119820.0,119810.0,0.15902922]
[1753216042233,1.39080757,119820.0,119810.0,0.27905922]
[1753216043233,1.39480757,119820.0,119810.0,0.27905922]
[1753216043837,1.39716757,119820.0,119810.0,0.27905922]
[1753216044133,1.39716757,119820.0,119810.0,0.29049922]
[1753216044333,1.39716757,119820.0,119810.0,0.32310922]
[1753216045338,0.80472757,119820.0,119810.0,0.32310922]
[1753216045542,1.39708757,119820.0,119810.0,0.32310922]
[1753216045837,0.80472757,119820.0,119810.0,0.40506922]
[1753216046029,1.0450682,119820.0,119810.0,0.40506922]
[1753216046939,0.4529082,119820.0,119810.0,0.40506922]
[1753216047138,1.0449482,119820.0,119810.0,0.40506922]
[1753216048537,1.0445882,119820.0,119810.0,0.40506922]
[1753216048935,0.4529082,119820.0,119810.0,0.40506922]
[1753216049133,1.0444682,119820.0,119810.0,0.40506922]
[1753216054437,1.0444682,119820.0,119810.0,0.41811023]
[1753216055151,0.2830382,119820.0,119810.0,0.89222692]
[1753216055338,0.8733182,119820.0,119810.0,0.89222692]
[1753216055739,0.8733582,119820.0,119810.0,0.72536482]
[1753216055939,0.8733582,119820.0,119810.0,0.89222692]
[1753216056237,0.8733582,119820.0,119810.0,0.95169307]
[1753216056843,0.9932982,119820.0,119810.0,0.77178996]
[1753216057038,0.9932982,119820.0,119810.0,0.7848304]
[1753216057235,0.4029782,119820.0,119810.0,0.7848304]
[1753216057441,0.9932582,119820.0,119810.0,0.9516925]
[1753216058755,0.4029782,119820.0,119810.0,0.9516925]
[1753216059050,0.1738482,119820.0,119810.0,0.9516925]
[1753216059248,0.7634082,119820.0,119810.0,0.89222635]
[1753216059945,0.7634082,119820.0,119810.0,0.89222532]
[1753216060454,0.1738482,119820.0,119810.0,1.48170532]
[1753216060644,0.1738482,119820.0,119810.0,1.49148472]
[1753216061146,0.1738482,119820.0,119810.0,1.55099826]
[1753216062252,0.1738482,119820.0,119810.0,1.49148472]
[1753216062452,0.1738482,119820.0,119810.0,0.96151529]
[1753216062651,0.1738482,119820.0,119810.0,1.55051529]
[1753216062845,0.1738482,119820.0,119810.0,1.49100472]
[1753216063153,0.1738482,119820.0,119810.0,1.49100423]
[1753216063450,0.1738482,119820.0,119810.0,1.47796517]
[1753216063655,0.1738482,119820.0,119810.0,1.49088418]
[1753216063857,0.1698482,119820.0,119810.0,1.13906481]
[1753216064050,0.1698482,119820.0,119810.0,1.49788418]
[1753216064450,0.1668482,119820.0,119810.0,1.50388418]
[1753216068851,0.8815376,119830.0,119820.0,0.477168]
[1753216069052,0.8813376,119830.0,119820.0,0.54972753]
[1753216069252,1.1581676,119830.0,119820.0,0.7346989]
[1753216069448,1.1581676,119830.0,119820.0,0.38287953]
[1753216069754,1.1581676,119830.0,119820.0,0.7346989]
[1753216069954,1.1590876,119830.0,119820.0,0.7346989]
[1753216070250,1.1620876,119830.0,119820.0,0.7346989]
[1753216070454,1.120376,119830.0,119820.0,0.7346989]
[1753216070654,1.0786653,119830.0,119820.0,0.7346989]
[1753216070855,1.0369559,119830.0,119820.0,0.9015469]
[1753216071053,0.87011,119830.0,119820.0,0.9015469]
[1753216071258,0.28183,119830.0,119820.0,0.9015469]
[1753216071553,0.87043,119830.0,119820.0,0.9015469]
[1753216071856,0.87035,119830.0,119820.0,0.9015469]
[1753216072153,0.28183,119830.0,119820.0,0.90154664]
[1753216072356,0.82429,119830.0,119820.0,0.90154664]
[1753216072655,0.005,119830.0,119820.0,0.84202613]
[1753216073051,0.0002,119840.0,119830.0,0.1668343]
[1753216073252,1.074022,119850.0,119840.0,0.4771404]
[1753216073452,1.073822,119850.0,119840.0,0.70675784]
[1753216074054,1.073822,119850.0,119840.0,0.66213937]
[1753216074252,1.077822,119850.0,119840.0,0.66213937]
[1753216074953,1.077822,119850.0,119840.0,0.67517746]
[1753216075355,1.083822,119850.0,119840.0,0.67517746]
[1753216075752,0.495342,119850.0,119840.0,0.84199776]
[1753216076056,1.083302,119850.0,119840.0,0.84199776]
[1753216076760,0.495342,119850.0,119840.0,0.84199776]
[1753216076962,1.083222,119850.0,119840.0,0.84199776]
[1753216077258,0.495342,119850.0,119840.0,0.84199776]
[1753216077556,1.083022,119850.0,119840.0,0.84199776]
[1753216078057,1.083022,119850.0,119840.0,0.67517746]
[1753216078255,1.083022,119850.0,119840.0,0.84199786]
[1753216078452,1.082942,119850.0,119840.0,0.84199786]
[1753216078647,1.082942,119850.0,119840.0,0.82895977]
[1753216079962,1.082942,119850.0,119840.0,0.84199652]
[1753216080258,1.082942,119850.0,119840.0,0.84199642]
[1753216081160,1.082942,119850.0,119840.0,0.49017705]
[1753216081456,1.082942,119850.0,119840.0,0.84199642]
[1753216081858,0.495342,119850.0,119840.0,0.84199642]
[1753216082060,1.036122,119850.0,119840.0,0.84199642]
[1753216082459,1.036122,119850.0,119840.0,0.49017705]
[1753216082660,1.036122,119850.0,119840.0,0.84199642]
[1753216082859,1.082262,119850.0,119840.0,0.8419964]
[1753216083359,1.082262,119850.0,119840.0,0.84199638]
[1753216085556,1.082262,119850.0,119840.0,0.82895967]
[1753216085749,1.082262,119850.0,119840.0,0.88846129]
[1753216087362,1.082262,119850.0,119840.0,0.90149788]
[1753216087656,1.082262,119850.0,119840.0,0.54967851]
[1753216087862,1.082262,119850.0,119840.0,0.73467758]
[1753216088163,1.082262,119850.0,119840.0,0.88846129]
[1753216090258,1.082142,119850.0,119840.0,0.88846129]
[1753216091465,0.495342,119850.0,119840.0,0.88846129]
[1753216091665,1.082102,119850.0,119840.0,0.88846129]
[1753216093268,0.495342,119850.0,119840.0,0.88846129]
[1753216093766,1.082102,119850.0,119840.0,0.88846129]
[1753216095666,1.082102,119850.0,119840.0,0.72164099]
[1753216098766,1.082062,119850.0,119840.0,0.72164099]
[1753216099267,1.082062,119850.0,119840.0,0.73467794]
[1753216099566,1.082062,119850.0,119840.0,0.38285857]
[1753216099867,0.84716137,119850.0,119840.0,0.08396162]
[1753216100067,1.43388137,119850.0,119840.0,0.08396162]
[1753216100262,1.43388137,119850.0,119840.0,0.09699907]
[1753216100463,1.43388137,119850.0,119840.0,0.08396162]
[1753216100764,1.43388137,119850.0,119840.0,0.08537767]
[1753216101158,1.43444137,119850.0,119840.0,0.08537767]
[1753216103567,1.082622,119850.0,119840.0,0.08537767]
[1753216103966,1.43444137,119850.0,119840.0,0.08537767]
[1753216105168,1.43388137,119850.0,119840.0,0.047276]
[1753216105365,1.43388137,119850.0,119840.0,0.022816]